bitfinex-derivatives/quotes_SOLF0:USTF0_20260305
["timestamp","ask_amount","ask_price","bid_price","bid_amount"]
[1772739666555,3.93248473,88.986,88.924,3.70667891]
[1772739668151,3.93248473,88.986,88.9,9.52034563]
[1772739668152,3.93248473,89.006,88.939,3.70667891]
[1772739669154,3.92237053,89.027,88.966,3.70667891]
[1772739669450,13.14940634,89.027,88.966,3.70667891]
[1772739669652,3.92237053,89.027,88.966,3.70667891]
[1772739669852,14.02937053,89.027,88.966,3.70667891]
[1772739670251,10.107,89.027,88.966,3.70667891]
[1772739670557,10.106,89.035,88.981,3.70667891]
[1772739671460,14.02737053,89.043,88.981,3.70667891]
[1772739671955,23.25440634,89.043,88.981,3.70667891]
[1772739672159,3.93248473,89.041,88.961,3.70667891]
[1772739672655,3.93248473,89.036,88.98,3.70667891]
[1772739672861,9.27226676,89.048,88.98,3.70667891]
[1772739673059,3.93248473,89.054,88.98,3.70667891]
[1772739674258,3.93248473,89.049,88.982,13.81867891]
[1772739675363,10.107,89.028,88.982,3.70667891]
[1772739675561,3.93248473,89.028,88.964,3.70667891]
[1772739676558,14.03948473,89.028,88.97,3.70667891]
[1772739677156,10.108,89.02,88.97,3.70667891]
[1772739677362,3.93248473,89.028,88.97,3.70667891]
[1772739677961,3.93248473,89.028,88.982,10.112]
[1772739679567,10.108,89.025,88.974,10.113]
[1772739680266,10.108,89.025,88.96,9.52034563]
[1772739680267,3.93248473,89.028,88.977,3.70667891]
[1772739680463,3.93248473,89.046,88.977,3.70667891]
[1772739681163,3.93248473,89.046,88.98,9.52034563]
[1772739681469,3.93248473,89.046,88.992,3.70667891]
[1772739682364,3.93248473,89.046,88.996,10.111]
[1772739683665,10.105,89.044,88.996,10.111]
[1772739683971,10.105,89.044,88.992,3.70667891]
[1772739684773,10.105,89.044,88.994,10.111]
[1772739687873,3.93248473,89.046,88.992,3.70667891]
[1772739688176,3.93248473,89.046,88.961,3.69715587]
[1772739688771,13.87866592,89.039,88.988,3.69715587]
[1772739689265,3.77266592,89.031,88.972,3.69715587]
[1772739689468,3.77266592,89.031,88.941,3.69715587]
[1772739689673,3.77266592,89.029,88.958,10.115]
[1772739689872,3.77266592,89.017,88.941,3.69715587]
[1772739690274,10.109,89.009,88.957,3.70202282]
[1772739690574,3.77266592,89.017,88.957,3.70202282]
[1772739691074,3.77266592,89.017,88.931,3.70202282]
[1772739691469,10.11,88.999,88.954,10.116]
[1772739691669,3.77266592,89.017,88.955,3.70202282]
[1772739692973,10.109,89.009,88.963,10.115]
[1772739693668,13.88066592,89.017,88.963,10.115]
[1772739693875,20.208,89.057,88.964,3.70202282]
[1772739693876,3.90797017,89.016,88.964,3.70202282]
[1772739694373,10.11,89.008,88.964,3.70202282]
[1772739694581,3.92150248,89.007,88.954,10.116]
[1772739694972,3.92150248,89.002,88.946,3.70202282]
[1772739695279,3.92150248,89.002,88.911,3.70202282]
[1772739695774,3.92150248,89.002,88.931,3.70202282]
[1772739695981,3.92150248,89.002,88.951,10.116]
[1772739696179,3.92150248,89.002,88.947,3.70202282]
[1772739696478,10.109,89.009,88.947,3.70202282]
[1772739697275,14.0305392,89.009,88.947,3.70202282]
[1772739697480,3.9215392,89.008,88.958,10.115]
[1772739700280,3.9215392,89.008,88.962,10.115]
[1772739700878,3.92024462,89.006,88.931,3.70202282]
[1772739701384,3.92024462,89.006,88.954,3.70202282]
[1772739702481,3.92024462,89.006,88.96,3.70202282]
[1772739703084,10.109,89.011,88.96,3.70202282]
[1772739703587,3.92379202,89.018,88.931,3.70202282]
[1772739704285,10.11,89.0,88.931,3.70202282]
[1772739704488,14.0324587,89.0,88.953,10.116]
[1772739704988,3.9224587,88.992,88.931,3.70202282]
[1772739705785,9.52657558,89.0,88.931,3.70202282]
[1772739705786,3.9224587,88.981,88.931,3.70202282]
[1772739706684,10.111,88.991,88.937,3.70202282]
[1772739707290,3.83793779,88.997,88.937,3.70202282]
[1772739707485,3.83793779,89.019,88.937,3.70202282]
[1772739708388,10.11,89.005,88.958,10.115]
[1772739708982,10.11,89.005,88.956,3.70202282]
[1772739708983,10.11,89.003,88.956,3.70202282]
[1772739709183,3.81558436,89.002,88.931,3.70202282]
[1772739709581,9.52657558,89.0,88.931,3.70202282]
[1772739709788,3.81558436,88.999,88.931,3.70202282]
[1772739709987,13.92758436,88.985,88.936,10.118]
[1772739710187,3.81558436,88.984,88.931,3.70202282]
[1772739710790,3.82336669,88.98,88.932,10.118]
[1772739711491,10.113,88.979,88.932,10.118]
[1772739713187,3.82336669,88.98,88.94,10.117]
[1772739713392,3.72014212,88.999,88.941,3.70202282]
[1772739713886,10.48712026,89.035,88.947,3.70202282]
[1772739713887,3.72014212,89.016,88.947,3.70202282]
[1772739714489,3.72014212,89.016,88.951,3.70202282]
[1772739714890,13.82914212,89.016,88.971,10.114]
[1772739715088,13.82914212,89.016,88.951,3.70202282]
[1772739716499,10.109,89.009,88.963,10.114]
[1772739717001,10.109,89.009,88.964,3.70202282]
[1772739717395,10.11,89.003,88.964,3.70202282]
[1772739718089,10.11,89.003,88.951,10.116]
[1772739718498,10.111,88.996,88.951,10.116]
[1772739720401,3.67412757,88.987,88.941,10.117]
[1772739722797,3.67412757,88.987,88.948,10.116]
[1772739723000,20.216,89.023,88.918,3.61306334]
[1772739723001,3.67412757,88.985,88.918,3.61306334]
[1772739723399,20.216,89.023,88.918,3.61306334]
[1772739723400,3.67412757,88.975,88.925,10.119]
[1772739723603,3.67412757,88.975,88.888,20.246]
[1772739723604,3.67412757,88.975,88.901,3.61306334]
[1772739723900,3.67412757,88.959,88.879,3.61306334]
[1772739724104,9.52657558,88.96,88.879,3.61306334]
[1772739724308,3.67412757,88.962,88.881,3.61306334]
[1772739724699,3.67412757,88.962,88.904,3.61306334]
[1772739725103,3.67412757,88.978,88.904,3.61306334]
[1772739725507,13.77271181,89.03,88.947,10.116]
[1772739725508,9.52657558,89.0,88.947,10.116]
[1772739725702,3.67412757,88.995,88.947,10.116]
[1772739726201,3.67412757,88.995,88.954,10.115]
[1772739726406,3.67412757,89.011,88.941,3.61306334]
[1772739727207,10.11,89.003,88.945,10.117]
[1772739727510,13.78412757,89.003,88.945,10.117]
[1772739727710,3.67412757,89.002,88.945,10.117]
[1772739727910,3.67412757,89.002,88.952,10.116]
[1772739728211,3.67412757,89.002,88.953,3.61306334]
[1772739728408,10.108,89.018,88.953,3.61306334]
[1772739728710,3.67412757,89.017,88.956,10.115]
[1772739729009,3.67412757,89.017,88.957,3.61306334]
[1772739729210,10.109,89.013,88.957,3.61306334]
[1772739729404,3.67412757,89.012,88.957,3.61306334]
[1772739730207,13.78312757,89.009,88.957,3.61306334]
[1772739730411,3.67412757,89.008,88.957,3.61306334]
[1772739731409,10.11,89.007,88.957,3.61306334]
[1772739731609,13.78412757,89.007,88.957,3.61306334]
[1772739731813,3.67412757,89.006,88.957,3.61306334]
[1772739732212,3.67412757,89.005,88.957,3.61306334]
[1772739732914,10.11,89.002,88.957,3.61306334]
[1772739733712,3.67412757,89.005,88.957,3.61306334]
[1772739734717,21.46383007,89.019,88.957,3.61306334]
[1772739735014,3.67412757,89.018,88.957,3.61306334]
[1772739736407,10.109,89.011,88.96,10.115]
[1772739737216,3.67412757,89.017,88.967,10.114]
[1772739737813,3.67412757,89.017,88.968,3.61306334]
[1772739738010,3.67412757,89.017,88.972,3.61306334]
[1772739738712,21.49145332,89.031,88.972,3.61306334]
[1772739739214,13.78112757,89.029,88.977,10.113]
[1772739739609,3.67412757,89.028,88.977,10.113]
[1772739739916,3.67412757,89.028,88.972,3.61306334]
[1772739739917,13.78212757,89.025,88.972,3.61306334]
[1772739740117,3.67412757,89.024,88.972,3.61306334]
[1772739740519,3.67412757,89.012,88.959,10.115]
[1772739740714,3.67412757,89.012,88.96,3.61306334]
[1772739743119,3.67412757,89.012,88.971,10.114]
[1772739743720,10.108,89.018,88.975,10.113]
[1772739743919,3.67412757,89.028,88.975,10.113]
[1772739743920,10.108,89.025,88.975,10.113]
[1772739744117,13.78212757,89.025,88.975,10.113]
[1772739744621,9.52657558,89.04,88.975,10.113]
[1772739744622,10.108,89.019,88.975,10.113]
[1772739745413,3.67412757,89.024,88.982,10.112]
[1772739746422,3.67412757,89.051,88.982,13.72506334]
[1772739746620,10.107,89.028,88.982,13.72506334]
[1772739746816,13.78112757,89.028,88.982,13.72506334]
[1772739747422,3.67412757,89.028,88.988,10.112]
[1772739747920,3.67412757,89.028,88.982,3.61306334]
[1772739748322,3.67412757,89.028,88.984,10.112]
[1772739748817,10.106,89.04,88.991,10.111]
[1772739749022,13.85709938,89.04,88.992,3.81161347]
[1772739749920,3.75109938,89.04,88.994,10.111]
[1772739750224,3.66606838,89.026,88.973,3.73415012]
[1772739750817,3.66606838,89.024,88.973,3.73415012]
[1772739751322,3.66606838,89.042,88.974,3.73415012]
[1772739751722,10.106,89.041,88.974,3.73415012]
[1772739752322,3.66606838,89.042,88.97,9.52215711]
[1772739752323,3.66606838,89.042,88.999,10.11]
[1772739752520,3.66606838,89.042,88.999,13.84415012]
[1772739753225,10.105,89.051,89.0,3.73415012]
[1772739754520,3.55235396,89.05,89.002,3.73415012]
[1772739754721,3.66606838,89.048,89.002,3.73415012]
[1772739756229,3.66606838,89.048,89.003,10.11]
[1772739759025,10.105,89.047,89.002,3.73415012]
[1772739759325,3.66606838,89.039,88.99,7.28650408]
[1772739760528,3.66606838,89.039,88.992,3.73415012]
[1772739761425,3.66606838,89.039,88.994,10.111]
[1772739762220,3.66606838,89.039,88.992,3.73415012]
[1772739762425,3.55235396,89.03,88.992,3.73415012]
[1772739762625,3.66606838,89.019,88.961,3.73415012]
[1772739762920,3.55235396,89.02,88.971,3.73415012]
[1772739764322,13.77406838,89.025,88.981,10.112]
[1772739765322,3.55235396,89.03,88.985,13.84615012]
[1772739765726,3.66606838,89.029,88.98,3.55235396]
[1772739765930,3.66606838,89.029,88.98,3.73415012]
[1772739766128,3.55235396,89.02,88.98,3.73415012]
[1772739766334,3.66606838,89.019,88.965,3.73415012]
[1772739766734,20.208,89.058,88.965,3.73415012]
[1772739766735,7.21842234,89.01,88.965,3.73415012]
[1772739767734,3.55235396,89.01,88.965,3.73415012]
[1772739767931,3.55235396,89.01,88.965,13.84815012]
[1772739768235,3.66606838,89.023,88.965,13.84815012]
[1772739768236,3.55235396,89.02,88.965,3.73415012]
[1772739768437,3.55235396,89.02,88.972,3.73415012]
[1772739768737,3.66606838,89.023,88.972,3.73415012]
[1772739769235,3.66606838,89.023,88.916,27.78777686]
[1772739769236,3.55235396,89.03,88.983,3.73415012]
[1772739770430,3.55235396,89.03,88.984,13.84615012]
[1772739770631,3.55235396,89.03,88.985,3.73415012]
[1772739771035,3.66606838,89.037,88.995,3.73415012]
[1772739771235,3.55235396,89.05,89.001,3.73415012]
[1772739772537,3.66606838,89.067,89.02,3.55235396]
[1772739772735,3.66606838,89.067,89.021,3.73415012]
[1772739772932,10.48712026,89.096,89.021,3.73415012]
[1772739772933,3.55235396,89.08,89.03,3.55235396]
[1772739773237,3.55235396,89.08,89.031,3.73415012]
[1772739773937,3.66606838,89.08,89.031,3.73415012]
[1772739774237,3.55235396,89.07,89.031,3.73415012]
[1772739774738,10.101,89.079,89.031,3.73415012]
[1772739775936,13.74564786,89.079,89.031,3.73415012]
[1772739776131,3.55235396,89.07,89.02,13.66035396]
[1772739776341,3.64464786,89.059,89.016,3.73415012]
[1772739776637,3.55235396,89.06,89.016,3.73415012]
[1772739776832,3.55235396,89.07,89.016,3.73415012]
[1772739777432,13.76806838,89.074,89.021,3.73415012]
[1772739777740,3.66606838,89.074,89.03,3.55235396]
[1772739777935,3.66606838,89.074,89.021,3.73415012]
[1772739778439,3.66606838,89.074,89.02,3.55235396]
[1772739778440,3.66606838,89.074,89.024,3.73415012]
[1772739779134,3.66606838,89.074,89.026,3.73415012]
[1772739779339,3.55235396,89.07,89.026,3.73415012]
[1772739783643,3.55235396,89.08,89.03,3.55235396]
[1772739783948,3.57018325,89.107,89.051,3.80560844]
[1772739784246,3.57018325,89.107,89.06,7.3579624]
[1772739785141,3.55369827,89.089,89.042,3.80560844]
[1772739786545,3.55235396,89.08,89.027,3.80560844]
[1772739787141,10.101,89.079,89.028,10.107]
[1772739787346,10.101,89.079,89.028,13.91260844]
[1772739788145,3.56294601,89.087,89.032,10.107]
[1772739788346,7.11529997,89.08,89.029,3.80560844]
[1772739788539,7.10025394,89.07,89.023,10.108]
[1772739789240,7.10025394,89.07,89.014,10.109]
[1772739789443,3.55235396,89.06,89.015,3.80560844]
[1772739790448,10.104,89.059,89.015,3.80560844]
[1772739790650,3.55235396,89.07,89.021,3.80560844]
[1772739790850,3.57520692,89.069,89.021,3.80560844]
[1772739791045,3.55235396,89.06,89.021,3.80560844]
[1772739792150,3.55235396,89.06,89.008,10.109]
[1772739792151,10.104,89.054,89.008,10.109]
[1772739792451,3.55235396,89.05,89.008,13.91460844]
[1772739792650,3.57520692,89.053,89.009,3.80560844]
[1772739792854,3.57520692,89.053,89.01,3.55235396]
[1772739793548,3.57520692,89.053,89.01,13.66135396]
[1772739793753,7.15282465,89.05,89.0,3.55235396]
[1772739793951,7.15282465,89.05,89.001,3.80560844]
[1772739794550,3.60047069,89.05,89.008,10.109]
[1772739796351,10.105,89.045,89.001,3.80560844]
[1772739796655,3.61017004,89.092,89.011,3.80560844]
[1772739796849,3.55235396,89.06,89.011,3.80560844]
[1772739797748,3.55235396,89.05,89.0,3.55235396]
[1772739798255,13.71417004,89.059,89.015,3.80560844]
[1772739798956,3.61017004,89.059,89.017,10.108]
[1772739799557,3.55235396,89.06,89.02,10.108]
[1772739800958,3.55235396,89.06,89.024,10.108]
[1772739801359,3.55235396,89.07,89.021,3.80560844]
[1772739801963,3.55235396,89.08,89.031,3.80560844]
[1772739802463,7.14964548,89.09,89.043,10.105]
[1772739802761,7.14964548,89.09,89.044,3.80560844]
[1772739802964,3.59567424,89.089,89.044,3.80560844]
[1772739803164,10.1,89.088,89.044,3.80560844]
[1772739804064,10.48712026,89.127,88.991,20.223]
[1772739804065,3.59567424,89.069,89.02,3.55235396]
[1772739804268,3.55235396,89.06,89.013,3.80560844]
[1772739804462,3.55235396,89.05,89.0,3.55235396]
[1772739805057,3.55235396,89.05,89.001,3.80560844]
[1772739806261,3.59567424,89.059,89.011,3.80560844]
[1772739806762,3.59567424,89.059,88.97,20.228]
[1772739806763,3.55235396,89.05,88.996,3.80560844]
[1772739806960,3.55235396,89.04,88.996,3.80560844]
[1772739808265,3.55235396,89.04,88.999,10.11]
[1772739809458,3.54851299,89.029,88.981,3.93225851]
[1772739809658,20.204,89.077,88.981,3.93225851]
[1772739809659,3.55235396,89.03,88.981,3.93225851]
[1772739809866,3.55235396,89.04,88.991,3.93225851]
[1772739810063,3.55235396,89.04,88.994,10.111]
[1772739810265,3.55235396,89.05,89.001,3.63603712]
[1772739811366,3.55235396,89.05,89.005,10.11]
[1772739811558,3.55235396,89.05,89.005,13.74603712]
[1772739812273,3.55235396,89.03,88.982,3.63603712]
[1772739812471,3.55390429,89.03,88.982,3.63603712]
[1772739812870,3.55507481,89.039,88.982,3.63603712]
[1772739814372,3.55390429,89.03,88.983,3.63603712]
[1772739815774,13.66107481,89.039,88.992,3.63603712]
[1772739815967,3.55507481,89.039,88.992,3.63603712]
[1772739816172,10.105,89.048,88.992,3.63603712]
[1772739816467,10.105,89.048,88.99,3.55390429]
[1772739816468,10.105,89.048,88.994,3.63603712]
[1772739816672,3.55638556,89.047,88.994,3.63603712]
[1772739816968,3.55390429,89.04,88.994,3.63603712]
[1772739817474,3.55390429,89.04,88.995,10.111]
[1772739818870,3.55390429,89.04,88.995,13.74703712]
[1772739820075,3.55390429,89.02,88.98,3.63603712]
[1772739821275,3.56404318,89.029,88.98,3.63603712]
[1772739821475,3.55390429,89.01,88.963,3.63603712]
[1772739821665,3.55390429,89.0,88.963,3.63603712]
[1772739821869,3.55390429,88.99,88.948,3.63603712]
[1772739822072,3.56414527,89.005,88.961,3.63603712]
[1772739822272,3.55390429,89.01,88.961,3.63603712]
[1772739822768,3.48135543,88.989,88.924,3.63603712]
[1772739822964,3.48135543,88.989,88.923,20.49708662]
[1772739822965,3.48135543,88.989,88.931,3.63603712]
[1772739823169,3.55390429,88.99,88.941,3.63603712]
[1772739823368,7.03525972,89.02,88.971,3.63603712]
[1772739823774,7.03525972,89.02,88.972,10.113]
[1772739823977,7.03525972,89.02,88.906,157.445]
[1772739823978,3.55390429,89.01,88.961,3.63603712]
[1772739824776,10.109,89.009,88.963,10.114]
[1772739825374,3.55390429,89.0,88.95,3.55390429]
[1772739826175,3.55390429,89.0,88.952,3.63603712]
[1772739826476,3.55390429,89.01,88.961,3.63603712]
[1772739827476,10.11,89.008,88.961,3.63603712]
[1772739829274,3.55390429,89.0,88.961,3.63603712]
[1772739829578,3.55390429,88.99,88.943,3.63603712]
[1772739829972,3.55390429,88.99,88.948,10.116]
[1772739830278,3.48607114,88.999,88.951,3.63603712]
[1772739830473,3.48607114,88.999,88.953,10.116]
[1772739830774,3.55390429,89.0,88.953,3.63603712]
[1772739830974,3.55390429,89.01,88.953,3.63603712]
[1772739831374,3.55390429,89.01,88.96,7.18994141]
[1772739831775,3.55390429,89.01,88.974,10.113]
[1772739831978,3.55390429,89.01,88.96,3.63603712]
[1772739832571,3.55390429,89.01,88.96,13.75103712]
[1772739832770,3.55390429,89.01,88.904,20.49708662]
[1772739832771,3.55390429,88.99,88.941,3.63603712]
[1772739833577,3.48608862,88.999,88.948,3.63603712]
[1772739834280,3.48608862,88.999,88.95,3.55390429]
[1772739834581,3.48608862,88.999,88.953,3.63603712]
[1772739835680,3.55390429,89.01,88.96,3.55390429]
[1772739835880,3.55390429,89.01,88.961,3.63603712]
[1772739836381,10.109,89.009,88.961,3.63603712]
[1772739837182,3.55390429,89.0,88.961,3.63603712]
[1772739837781,3.52177225,88.999,88.948,10.116]
[1772739837980,3.55390429,88.99,88.948,10.116]
[1772739838183,3.52177225,88.999,88.946,3.63603712]
[1772739838379,3.52177225,88.999,88.95,7.18994141]
[1772739838579,3.52177225,88.999,88.951,3.63603712]
[1772739839383,3.52177225,88.999,88.954,10.116]
[1772739840484,10.109,89.008,88.961,3.95899024]
[1772739841580,13.62283156,89.008,88.961,3.95899024]
[1772739841786,3.55390429,89.0,88.961,3.95899024]
[1772739842887,3.55390429,89.0,88.962,10.115]
[1772739843881,3.51383156,89.007,88.963,3.95899024]
[1772739844089,13.66290429,89.01,88.965,3.95899024]
[1772739844988,13.66290429,89.01,88.966,10.114]
[1772739845685,10.11,89.002,88.965,3.95899024]
[1772739845886,3.55390429,89.0,88.955,10.115]
[1772739846390,3.55390429,89.02,88.963,3.95899024]
[1772739847086,3.52092067,89.009,88.967,10.114]
[1772739848191,3.55390429,89.0,88.963,3.95899024]
[1772739848590,3.55390429,89.01,88.963,3.95899024]
[1772739849190,3.55390429,89.02,88.976,10.113]
[1772739850596,10.108,89.019,88.976,10.113]
[1772739850797,3.55390429,89.01,88.97,10.114]
[1772739850994,3.5288135,89.008,88.963,3.95899024]
[1772739851790,3.55390429,88.98,88.935,3.95899024]
[1772739853089,3.55390429,88.99,88.935,3.95899024]
[1772739853491,13.66490429,88.99,88.937,3.95899024]
[1772739853887,3.55390429,88.98,88.937,3.95899024]
[1772739854391,7.08447869,88.97,88.92,3.55390429]
[1772739854895,10.114,88.967,88.922,10.119]
[1772739855995,7.08447869,88.97,88.922,14.07799024]
[1772739857592,10.114,88.967,88.922,3.95899024]
[1772739857803,20.22,89.005,88.913,10.12]
[1772739857804,7.53157311,88.96,88.913,10.12]
[1772739858095,7.53157311,88.95,88.9,3.55390429]
[1772739858400,3.55390429,88.94,88.893,3.95899024]
[1772739858794,3.97766882,88.949,88.901,3.95899024]
[1772739860190,3.97766882,88.949,88.868,3.95899024]
[1772739860500,3.97766882,88.949,88.901,3.95899024]
[1772739861195,3.55390429,88.96,88.909,3.95899024]
[1772739861800,7.52336643,88.96,88.914,10.12]
[1772739862002,3.55390429,88.95,88.914,10.12]
[1772739862300,3.55390429,88.95,88.909,3.95899024]
[1772739863701,3.55390429,88.95,88.911,10.12]
[1772739864602,3.55390429,88.95,88.909,3.95899024]
[1772739865003,3.96946214,88.959,88.91,3.55390429]
[1772739865206,3.55390429,88.95,88.911,3.95899024]
[1772739865402,3.96946214,88.959,88.911,3.95899024]
[1772739866399,3.96946214,88.959,88.912,3.95899024]
[1772739866707,10.114,88.971,88.912,3.95899024]
[1772739866708,3.55390429,88.97,88.912,3.95899024]
[1772739867204,3.86884337,88.949,88.9,3.55390429]
[1772739867805,3.86884337,88.949,88.901,14.08099024]
[1772739868402,10.116,88.948,88.901,3.95899024]
[1772739868900,3.86884337,88.949,88.901,3.95899024]
[1772739869696,3.55390429,88.95,88.911,10.12]
[1772739870804,3.55390429,88.96,88.916,3.67075009]
[1772739872205,3.55390429,88.96,88.919,10.119]
[1772739872610,3.56000991,88.96,88.919,10.119]
[1772739872813,3.56000991,88.95,88.916,3.67075009]
[1772739873214,3.56000991,88.95,88.905,10.121]
[1772739873506,3.56000991,88.95,88.903,3.67075009]
[1772739873905,13.84824764,88.959,88.903,3.67075009]
[1772739874410,13.84824764,88.959,88.911,10.12]
[1772739874704,3.73324764,88.959,88.912,3.67075009]
[1772739875410,3.73324764,88.973,88.912,3.67075009]
[1772739875710,3.56000991,88.96,88.912,3.67075009]
[1772739876312,3.56000991,88.96,88.916,10.12]
[1772739878410,7.29325755,88.96,88.916,10.12]
[1772739879111,7.29325755,88.96,88.912,3.67075009]
[1772739880513,7.29325755,88.96,88.914,10.12]
[1772739881807,7.29325755,88.96,88.92,10.119]
[1772739882208,3.73324764,88.949,88.901,3.67075009]
[1772739882408,3.56000991,88.94,88.901,3.67075009]
[1772739883313,3.56000991,88.91,88.875,3.67075009]
[1772739883509,3.56000991,88.9,88.861,3.67075009]
[1772739883709,3.56000991,88.92,88.874,10.125]
[1772739884403,9.31313807,88.949,88.868,3.67075009]
[1772739884609,9.31313807,88.949,88.822,20.262]
[1772739884610,3.73324764,88.889,88.84,7.23076]
[1772739884813,3.56000991,88.88,88.841,3.67075009]
[1772739885606,3.73324764,88.889,88.841,3.67075009]
[1772739886511,3.73324764,88.889,88.843,10.128]
[1772739887112,3.56000991,88.9,88.851,3.67075009]
[1772739887315,3.6653124,88.907,88.861,3.67075009]
[1772739887913,10.12,88.919,88.873,10.125]
[1772739888619,13.8196281,88.919,88.873,10.125]
[1772739889013,3.6996281,88.919,88.873,10.125]
[1772739889712,3.6996281,88.94,88.882,3.67075009]
[1772739889913,3.6996281,88.939,88.89,3.56000991]
[1772739891518,3.6996281,88.939,88.891,10.123]
[1772739892109,3.6996281,88.939,88.898,10.122]
[1772739892308,3.6996281,88.939,88.842,20.257]
[1772739892309,3.6996281,88.939,88.9,3.56000991]
[1772739892910,3.56000991,88.95,88.902,10.121]
[1772739893111,3.56000991,88.95,88.902,13.79175009]
[1772739893523,3.56000991,88.95,88.905,10.121]
[1772739894420,3.56000991,88.95,88.903,3.67075009]
[1772739895119,7.28872033,88.95,88.903,3.67075009]
[1772739895425,3.72871042,88.939,88.89,17.35376]
[1772739895722,3.72871042,88.939,88.894,10.122]
[1772739895922,3.72871042,88.939,88.891,3.67075009]
[1772739896522,3.72324066,88.929,88.871,3.67075009]
[1772739897023,3.72324066,88.929,88.88,3.56000991]
[1772739898021,3.72324066,88.929,88.881,3.67075009]
[1772739898518,3.72324066,88.929,88.882,3.67075009]
[1772739899123,3.73324764,88.927,88.873,10.125]
[1772739899321,3.73324764,88.965,88.881,3.67075009]
[1772739899526,3.73324764,88.939,88.89,7.23076]
[1772739900123,3.73324764,88.939,88.89,3.67075009]
[1772739900327,3.73324764,88.939,88.891,3.69637756]
[1772739900524,10.116,88.954,88.901,3.69637756]
[1772739900728,3.61360995,88.949,88.901,3.69637756]
[1772739900922,3.61360995,88.949,88.89,3.56000991]
[1772739901127,3.61360995,88.939,88.89,3.56000991]
[1772739901626,3.61360995,88.939,88.885,3.69637756]
[1772739901627,3.56000991,88.93,88.885,13.81937756]
[1772739902027,7.17361986,88.93,88.885,13.81937756]
[1772739902225,7.17361986,88.92,88.871,3.69637756]
[1772739902523,3.61360995,88.9,88.857,3.69637756]
[1772739902729,3.56000991,88.89,88.852,10.127]
[1772739902929,3.61360995,88.899,88.852,10.127]
[1772739903126,3.61360995,88.889,88.843,3.69637756]
[1772739903327,3.61360995,88.889,88.843,13.82437756]
[1772739903522,3.61360995,88.879,88.83,3.56000991]
[1772739903727,3.61360995,88.879,88.828,3.69637756]
[1772739904729,3.56000991,88.87,88.828,3.69637756]
[1772739905424,3.56000991,88.87,88.83,10.13]
[1772739905828,3.56000991,88.86,88.812,3.69637756]
[1772739906222,3.56000991,88.86,88.817,10.131]
[1772739906424,7.17361986,88.86,88.817,10.131]
[1772739906722,3.56000991,88.86,88.811,3.69637756]
[1772739906925,3.61360995,88.866,88.82,13.69100991]
[1772739907133,3.61360995,88.866,88.82,17.38738747]
[1772739908233,3.56000991,88.86,88.811,10.132]
[1772739908634,3.56000991,88.86,88.817,10.131]
[1772739909433,3.61360995,88.859,88.817,10.131]
[1772739910432,3.56000991,88.87,88.827,3.69637756]
[1772739910928,3.61360995,88.894,88.837,3.69637756]
[1772739911126,3.56000991,88.89,88.84,3.56000991]
[1772739911326,7.17361986,88.89,88.837,3.69637756]
[1772739911526,7.17361986,88.89,88.84,10.128]
[1772739912338,3.61360995,88.879,88.831,3.69637756]
[1772739912539,3.56000991,88.88,88.831,3.69637756]
[1772739913537,3.56000991,88.89,88.84,3.69637756]
[1772739914337,7.17361986,88.89,88.84,3.69637756]
[1772739914535,3.61360995,88.879,88.831,10.13]
[1772739914730,3.56000991,88.87,88.824,3.69637756]
[1772739914933,3.56000991,88.86,88.824,3.69637756]
[1772739915133,3.56000991,88.86,88.811,3.69637756]
[1772739915640,3.61360995,88.864,88.811,13.82837756]
[1772739915839,3.56000991,88.84,88.811,10.132]
[1772739916738,3.56000991,88.84,88.803,10.133]
[1772739917438,20.242,88.91,88.803,10.133]
[1772739917439,3.56000991,88.83,88.803,10.133]
[1772739917630,3.56000991,88.84,88.803,10.133]
[1772739917838,3.56000991,88.84,88.798,3.69637756]
[1772739918339,3.61360995,88.85,88.806,13.82837756]
[1772739918649,3.56000991,88.85,88.807,3.69637756]
[1772739919540,3.56000991,88.85,88.811,3.69637756]
[1772739919742,3.56000991,88.87,88.821,3.69637756]
[1772739920139,3.56000991,88.86,88.821,3.69637756]
[1772739920545,3.61360995,88.879,88.821,3.69637756]
[1772739921554,3.61360995,88.871,88.821,3.69637756]
[1772739922946,3.61360995,88.869,88.821,3.69637756]
[1772739923152,3.61360995,88.869,88.805,3.69637756]
[1772739925545,9.55718458,88.88,88.81,3.69637756]
[1772739925750,3.61360995,88.879,88.81,3.69637756]
[1772739926343,10.125,88.871,88.817,10.131]
[1772739926652,3.61360995,88.87,88.818,3.69637756]
[1772739927153,10.126,88.861,88.818,3.69637756]